bitfinex-derivatives/quotes_SOLF0:USTF0_20241101
["timestamp","ask_amount","ask_price","bid_price","bid_amount"]
[1730472034948,2.8985,172.57,172.53,2.8989]
[1730472035835,11.13209391,172.58,172.53,2.8989]
[1730472035836,2.8986,172.56,172.53,2.8989]
[1730472036042,11.13209391,172.58,172.51,4.02]
[1730472036244,11.13209391,172.56,172.47,1.3296]
[1730472036448,2.8992,172.52,172.48,4.02]
[1730472036850,2.8992,172.52,172.49,2.8996]
[1730472037441,2.899,172.53,172.49,2.8996]
[1730472037852,2.899,172.53,172.5,2.8994]
[1730472038650,2.8985,172.57,172.53,2.8989]
[1730472038851,11.13209391,172.58,172.53,2.8989]
[1730472040253,2.8985,172.56,172.53,2.8989]
[1730472040447,2.8985,172.56,172.51,2.95316447]
[1730472040448,11.13209391,172.56,172.51,2.8992]
[1730472041156,2.8988,172.55,172.51,2.8992]
[1730472042959,11.13209391,172.56,172.48,1.3618]
[1730472043155,11.13209391,172.59,172.53,2.899]
[1730472043457,11.13209391,172.57,172.5,2.87551927]
[1730472043656,11.13209391,172.55,172.47,1.3296]
[1730472045145,11.13209391,172.55,172.48,3.84326631]
[1730472045457,2.8992,172.53,172.5,2.8994]
[1730472045659,2.8992,172.53,172.51,3.84326631]
[1730472045957,2.8992,172.53,172.52,3.84326631]
[1730472046360,2.8987,172.56,172.52,6.74226631]
[1730472046549,11.13209391,172.57,172.53,3.84326631]
[1730472046860,11.13209391,172.57,172.54,3.84326631]
[1730472047252,2.8987,172.55,172.52,2.899]
[1730472047561,2.8987,172.55,172.53,3.84163469]
[1730472047758,11.13209391,172.57,172.54,3.84163469]
[1730472048057,2.7069,172.63,172.55,3.841127]
[1730472048058,11.13209391,172.62,172.55,3.841127]
[1730472048254,11.13209391,172.62,172.56,3.841127]
[1730472048460,11.13209391,172.62,172.57,3.841127]
[1730472048757,11.13209391,172.62,172.53,4.02]
[1730472048963,11.13209391,172.62,172.57,2.8982]
[1730472048964,2.8978,172.6,172.57,2.8982]
[1730472050758,2.8983,172.58,172.54,2.8987]
[1730472050964,11.13209391,172.6,172.54,2.8987]
[1730472051166,11.13209391,172.6,172.55,3.84199741]
[1730472051366,2.8983,172.57,172.56,3.84199741]
[1730472053562,2.8983,172.57,172.54,2.8987]
[1730472053764,2.8985,172.56,172.55,3.84310643]
[1730472053957,11.13209391,172.58,172.49,4.02]
[1730472054162,11.13209391,172.58,172.5,6.70355356]
[1730472054365,11.13209391,172.58,172.51,3.84426946]
[1730472054563,11.13209391,172.58,172.52,3.84426946]
[1730472054768,11.13209391,172.58,172.53,3.84426946]
[1730472054955,2.899,172.54,172.51,2.8992]
[1730472055268,11.13209391,172.56,172.52,3.8452784]
[1730472055577,11.13209391,172.56,172.5,2.8995]
[1730472055578,2.8991,172.53,172.5,2.8995]
[1730472055868,11.13209391,172.56,172.51,3.84497905]
[1730472056168,11.13209391,172.56,172.52,3.84537938]
[1730472056370,11.13209391,172.56,172.48,4.02]
[1730472056561,11.13209391,172.54,172.49,3.8450316]
[1730472056765,11.13209391,172.54,172.5,3.8450316]
[1730472056971,2.8992,172.52,172.51,3.8450316]
[1730472057265,2.8992,172.52,172.42,3.84623632]
[1730472057266,11.13209391,172.52,172.42,3.84623632]
[1730472057473,11.13209391,172.49,172.43,3.84623632]
[1730472057770,2.9002,172.47,172.44,3.84623632]
[1730472057964,2.9002,172.47,172.45,3.84623632]
[1730472058170,2.9002,172.47,172.46,3.84623632]
[1730472058470,2.9002,172.47,172.44,2.9005]
[1730472058773,2.9002,172.47,172.45,3.84818818]
[1730472058963,2.8997,172.49,172.47,2.8999]
[1730472059164,11.13209391,172.51,172.42,4.02]
[1730472059363,11.13209391,172.51,172.43,3.84647084]
[1730472059564,11.13209391,172.51,172.44,3.84647084]
[1730472059763,2.9,172.48,172.45,6.74677084]
[1730472060071,11.13209391,172.51,172.46,3.84647084]
[1730472060267,11.13209391,172.51,172.47,3.84647084]
[1730472060573,11.13209391,172.51,172.48,3.84647084]
[1730472060762,2.6353,172.56,172.48,2.8998]
[1730472060763,11.13209391,172.53,172.48,2.8998]
[1730472060959,2.8994,172.51,172.49,3.84655972]
[1730472061161,11.13209391,172.53,172.44,11.13209391]
[1730472061365,11.13209391,172.53,172.47,2.8999]
[1730472061571,2.8996,172.5,172.47,2.8999]
[1730472061763,2.8996,172.5,172.48,3.84587129]
[1730472061962,2.8996,172.5,172.49,3.84587129]
[1730472062478,2.6353,172.56,172.42,4.02]
[1730472062479,2.9002,172.47,172.42,4.02]
[1730472062778,2.9002,172.47,172.43,3.84702388]
[1730472062976,2.9002,172.47,172.44,6.74742388]
[1730472063171,2.9002,172.47,172.45,3.84702388]
[1730472063374,2.9002,172.47,172.46,3.84702388]
[1730472064374,11.13209391,172.52,172.46,3.84702388]
[1730472064576,11.13209391,172.54,172.47,3.84702388]
[1730472064881,2.8994,172.51,172.48,6.74682388]
[1730472065072,2.8994,172.51,172.49,3.84702388]
[1730472065381,2.8988,172.55,172.52,2.8991]
[1730472065675,12.43269391,172.56,172.52,2.8991]
[1730472065676,11.13209391,172.56,172.52,2.8991]
[1730472065880,4.02,172.6,172.5,2.8884598]
[1730472065881,11.13209391,172.58,172.5,2.8884598]
[1730472066170,2.8987,172.55,172.52,2.8991]
[1730472067275,2.8989,172.54,172.52,2.8991]
[1730472068075,2.8989,172.54,172.5,2.95547137]
[1730472068277,2.8989,172.54,172.51,6.7415156]
[1730472068470,2.8989,172.54,172.51,2.8993]
[1730472068786,2.8989,172.54,172.52,3.84223434]
[1730472069080,2.8989,172.54,172.51,2.8993]
[1730472069385,2.8989,172.54,172.52,3.84221697]
[1730472069680,2.8988,172.55,172.52,2.8991]
[1730472070772,11.13209391,172.58,172.51,2.8992]
[1730472070972,11.13209391,172.58,172.52,3.8400604]
[1730472071172,11.13209391,172.58,172.5,2.95547137]
[1730472071375,11.13209391,172.6,172.51,14.97183224]
[1730472071685,12.48569391,172.62,172.52,3.83973833]
[1730472071877,2.8983,172.58,172.55,2.8987]
[1730472072281,2.8984,172.57,172.54,2.8988]
[1730472072579,2.8984,172.57,172.55,3.8376513]
[1730472072788,2.8984,172.57,172.54,2.8988]
[1730472072988,12.48569391,172.62,172.55,3.83717527]
[1730472073282,2.898,172.59,172.56,6.73511682]
[1730472073479,2.898,172.59,172.56,2.8983]
[1730472074986,2.8985,172.57,172.54,4.0]
[1730472075188,11.13209391,172.6,172.55,3.83697047]
[1730472075377,11.13209391,172.6,172.54,4.0]
[1730472075688,11.13209391,172.6,172.55,3.83749946]
[1730472075880,11.13209391,172.6,172.54,4.0]
[1730472076182,11.13209391,172.6,172.55,3.8374471]
[1730472076378,11.13209391,172.6,172.54,4.0]
[1730472076586,11.13209391,172.6,172.55,3.83737253]
[1730472076783,2.8984,172.57,172.54,6.8988]
[1730472076987,2.8984,172.57,172.55,3.83771078]
[1730472077284,2.8984,172.57,172.54,6.8988]
[1730472077580,2.8984,172.57,172.55,3.83866104]
[1730472077886,11.13209391,172.58,172.5,2.88844619]
[1730472078180,11.13209391,172.58,172.51,3.83812675]
[1730472078382,2.899,172.54,172.52,3.83812675]
[1730472078585,2.899,172.54,172.53,3.83812675]
[1730472078785,2.899,172.54,172.51,2.8993]
[1730472078981,2.899,172.53,172.52,3.8397912]
[1730472079290,11.13209391,172.53,172.49,3.8397912]
[1730472079486,11.13209391,172.53,172.45,6.9003]
[1730472079487,2.8999,172.48,172.45,6.9003]
[1730472079704,1.326,172.55,172.46,3.84176055]
[1730472079705,11.13209391,172.51,172.46,3.84176055]
[1730472079984,2.9,172.47,172.46,3.84198424]
[1730472080183,11.13209391,172.47,172.41,6.86724047]
[1730472080386,11.13209391,172.47,172.46,3.84625731]
[1730472080584,11.13209391,172.47,172.42,3.84625731]
[1730472081088,2.9005,172.45,172.42,3.84625731]
[1730472081286,2.9005,172.45,172.41,5.76814047]
[1730472082080,2.9005,172.45,172.42,3.84932265]
[1730472082488,2.9005,172.45,172.42,6.75012265]
[1730472084394,2.9005,172.45,172.42,2.9008]
[1730472085586,11.13209391,172.51,172.41,13.99933438]
[1730472085776,11.13209391,172.51,172.41,11.13209391]
[1730472085979,2.9001,172.47,172.44,2.9004]
[1730472088185,2.8998,172.49,172.46,2.9002]
[1730472088585,11.13209391,172.53,172.44,2.92390028]
[1730472088785,11.13209391,172.53,172.43,11.13209391]
[1730472088786,11.13209391,172.57,172.47,11.13209391]
[1730472089190,11.13209391,172.59,172.49,11.13209391]
[1730472089393,11.13209391,172.59,172.5,1.2609]
[1730472089591,11.13209391,172.57,172.51,4.0]
[1730472090199,2.8989,172.54,172.51,6.8993]
[1730472090388,2.8989,172.54,172.51,4.0]
[1730472091189,11.13209391,172.57,172.48,4.1529]
[1730472091190,2.8992,172.52,172.48,4.1529]
[1730472091397,2.8992,172.52,172.49,7.84900122]
[1730472091695,11.13209391,172.54,172.5,3.84900122]
[1730472091892,11.13209391,172.54,172.48,2.8998]
[1730472092091,11.13209391,172.54,172.49,3.84941253]
[1730472092397,2.8995,172.51,172.5,3.84941253]
[1730472095300,2.8998,172.49,172.46,2.9002]
[1730472095496,2.8998,172.49,172.47,3.85037773]
[1730472095701,2.8998,172.49,172.48,3.85037773]
[1730472097806,11.13209391,172.5,172.44,6.9005]
[1730472098000,2.9,172.48,172.45,6.75251698]
[1730472098188,11.13209391,172.5,172.46,3.85211698]
[1730472098390,11.13209391,172.5,172.47,3.85211698]
[1730472098694,11.13209391,172.5,172.48,3.85211698]
[1730472098894,2.9,172.47,172.45,2.9004]
[1730472099303,1.2935,172.55,172.46,6.75319896]
[1730472099304,11.13209391,172.52,172.46,6.75319896]
[1730472099494,11.13209391,172.52,172.47,3.85299896]
[1730472099693,11.13209391,172.52,172.48,3.85299896]
[1730472099894,14.03159391,172.5,172.49,3.85299896]
[1730472100105,11.13209391,172.5,172.44,4.0]
[1730472100404,11.13209391,172.48,172.45,3.85554966]
[1730472100702,11.13209391,172.46,172.36,13.80432188]
[1730472100996,11.13209391,172.43,172.37,3.85615032]
[1730472101189,11.13209391,172.43,172.38,3.85615032]
[1730472101395,11.13209391,172.43,172.39,3.85615032]
[1730472101609,2.901,172.41,172.4,3.85615032]
[1730472102899,2.9015,172.39,172.34,4.0]
[1730472103200,2.9015,172.39,172.35,7.71083211]
[1730472103400,2.9015,172.39,172.36,3.85541605]
[1730472103598,2.9015,172.39,172.37,3.85541605]
[1730472103794,2.9015,172.39,172.38,3.85541605]
[1730472103999,2.9013,172.4,172.38,3.85541605]
[1730472104199,2.9013,172.4,172.39,3.85541605]
[1730472106400,11.13209391,172.43,172.39,3.85541605]
[1730472106589,2.5323,172.47,172.4,3.84773916]
[1730472106590,11.13209391,172.45,172.4,3.84773916]
[1730472106795,11.13209391,172.45,172.41,3.84773916]
[1730472106997,2.9007,172.43,172.38,2.9014]
[1730472107196,2.9007,172.43,172.39,3.84773724]
[1730472107400,11.13209391,172.43,172.4,3.84773724]
[1730472107706,11.13209391,172.43,172.37,2.9016]
[1730472107904,11.13209391,172.43,172.38,3.84682857]
[1730472108101,2.5323,172.47,172.35,3.85541606]
[1730472108102,11.13209391,172.41,172.39,3.84682857]
[1730472108408,11.13209391,172.41,172.36,3.84682857]
[1730472108600,11.13209391,172.41,172.33,4.0]
[1730472108601,11.13209391,172.41,172.37,3.84682857]
[1730472108806,2.9017,172.38,172.32,4.0]
[1730472109003,2.9017,172.38,172.33,3.84617181]
[1730472109209,2.9017,172.38,172.34,3.84617181]
[1730472109504,2.5323,172.47,172.3,2.574]
[1730472109505,11.13209391,172.37,172.3,1.2681]
[1730472109702,11.13209391,172.35,172.31,3.84507912]
[1730472109897,11.13209391,172.35,172.3,1.2681]
[1730472109898,11.13209391,172.35,172.32,3.84507912]
[1730472110094,11.13209391,172.35,172.33,3.84507912]
[1730472110295,11.13209391,172.35,172.3,1.2681]
[1730472110504,11.13209391,172.37,172.34,3.84511938]
[1730472110808,11.13209391,172.37,172.31,3.84511938]
[1730472111004,2.9018,172.37,172.33,2.9023]
[1730472111200,2.9018,172.37,172.33,3.84511938]
[1730472111402,2.9018,172.37,172.31,3.84511938]
[1730472111598,2.9018,172.37,172.34,2.9022]
[1730472111809,11.13209391,172.41,172.35,2.89606354]
[1730472112001,11.13209391,172.43,172.35,14.97721329]
[1730472112205,2.9009,172.42,172.35,17.83960842]
[1730472112507,11.13209391,172.43,172.36,3.84511938]
[1730472112710,11.13209391,172.43,172.39,2.9013]
[1730472112908,14.03279391,172.43,172.39,2.9013]
[1730472113314,2.9007,172.43,172.39,2.9013]
[1730472113818,2.9012,172.41,172.37,2.9016]
[1730472114104,22.21366474,172.47,172.37,3.84511938]
[1730472114105,11.13209391,172.45,172.37,3.84511938]
[1730472114312,11.13209391,172.45,172.36,5.11161938]
[1730472114513,2.9009,172.42,172.39,2.9012]
[1730472115114,11.13209391,172.45,172.39,2.9012]
[1730472115297,13.66439391,172.47,172.41,2.901]
[1730472115711,11.13209391,172.46,172.41,2.901]
[1730472116809,11.13209391,172.43,172.38,3.83882327]
[1730472117114,11.13209391,172.43,172.36,2.96694725]
[1730472117418,11.13209391,172.43,172.35,3.83882327]
[1730472117711,11.13209391,172.43,172.36,3.83882327]
[1730472117918,11.13209391,172.43,172.35,4.0]
[1730472118210,2.9011,172.41,172.37,2.9016]
[1730472118414,11.13209391,172.45,172.36,3.83801293]
[1730472118911,2.901,172.42,172.38,2.9014]
[1730472119309,11.13209391,172.4,172.36,3.83801293]
[1730472119510,2.9017,172.37,172.36,3.83801293]
[1730472119812,11.13209391,172.4,172.35,3.83801293]
[1730472120013,11.13209391,172.4,172.32,7.83801293]
[1730472120014,2.9019,172.36,172.32,7.83801293]
[1730472120207,2.9019,172.36,172.33,3.83801293]
[1730472120408,2.9019,172.36,172.34,3.83801293]
[1730472120607,2.9019,172.36,172.33,3.83801293]
[1730472120808,2.9019,172.36,172.34,3.83801293]
[1730472121118,2.9019,172.36,172.32,4.0]
[1730472121119,2.9019,172.36,172.33,3.83876137]
[1730472121315,2.902,172.35,172.33,3.83876137]
[1730472121609,11.13209391,172.36,172.3,3.83876137]
[1730472121816,11.13209391,172.36,172.31,3.83876137]
[1730472122014,11.13209391,172.43,172.28,4.0]
[1730472122015,11.13209391,172.4,172.32,14.97085528]
[1730472122219,11.13209391,172.4,172.33,3.83876137]
[1730472122406,11.13209391,172.4,172.34,2.9021]
[1730472122407,2.9017,172.38,172.34,2.9021]
[1730472123106,2.9017,172.38,172.35,2.902]
[1730472123804,2.9017,172.37,172.34,2.9022]
[1730472124012,11.13209391,172.38,172.33,3.83876137]
[1730472124217,11.13209391,172.38,172.29,11.13209391]
[1730472124218,11.13209391,172.38,172.3,4.0]
[1730472124417,11.13209391,172.38,172.31,3.83663337]
[1730472124617,2.9019,172.36,172.32,2.9025]
[1730472124821,17.84567117,172.39,172.32,2.9025]
[1730472125027,17.84567117,172.39,172.32,3.83663567]
[1730472125319,2.9023,172.34,172.3,6.73943567]
[1730472125507,2.9023,172.34,172.31,3.83663567]
[1730472125926,2.9023,172.34,172.3,6.73943567]
[1730472126110,2.9023,172.34,172.31,3.83663567]
[1730472126310,2.5698,172.38,172.3,3.83663567]
[1730472126518,2.902,172.36,172.3,3.83663567]
[1730472127014,2.902,172.36,172.31,3.83663567]
[1730472127212,2.902,172.36,172.32,3.83663567]
[1730472127414,17.84567117,172.41,172.3,3.83663567]
[1730472127617,20.41547117,172.44,172.31,3.83663567]
[1730472127817,20.41547117,172.44,172.32,3.83663567]
[1730472128006,20.41547117,172.44,172.33,3.83663567]
[1730472128210,20.41547117,172.44,172.34,3.83663567]
[1730472128412,2.9012,172.41,172.37,2.9016]
[1730472128619,20.41547117,172.44,172.37,2.9016]
[1730472128817,20.41547117,172.44,172.35,2.90912456]
[1730472129019,20.41547117,172.44,172.37,2.9017]
[1730472129020,2.9012,172.4,172.37,2.9017]
[1730472130818,20.41547117,172.44,172.35,6.88912456]
[1730472131020,20.41547117,172.44,172.35,3.98]
[1730472131319,20.41547117,172.44,172.35,6.92598566]
[1730472131827,2.9014,172.4,172.37,2.9016]
[1730472132429,2.9014,172.4,172.35,6.92598566]
[1730472132625,17.84567117,172.46,172.35,6.92598566]
[1730472132928,17.84567117,172.46,172.39,2.9012]
[1730472133130,2.9006,172.44,172.35,24.77165683]
[1730472133323,2.9006,172.44,172.35,28.6082925]
[1730472133525,17.84567117,172.46,172.36,3.83663567]
[1730472133723,2.9005,172.45,172.36,3.83663567]
[1730472134118,37.52532196,172.49,172.36,3.83663567]
[1730472134427,2.9006,172.44,172.41,2.901]
[1730472134821,2.6091,172.5,172.41,3.98]
[1730472135033,2.6091,172.5,172.42,1.3061]
[1730472135528,2.9001,172.47,172.44,2.9004]
[1730472136324,1.3737,172.54,172.44,2.91437407]
[1730472136533,1.3737,172.54,172.43,17.84567117]
[1730472137026,1.3737,172.54,172.43,3.98]
[1730472137027,17.84567117,172.52,172.43,3.98]
[1730472137326,17.84567117,172.49,172.39,3.98]
[1730472137527,1.3315,172.48,172.39,3.98]
[1730472137729,17.84567117,172.46,172.37,8.08506687]
[1730472137927,17.84567117,172.46,172.38,3.98]
[1730472138525,1.3128,172.45,172.38,3.98]
[1730472138725,17.84567117,172.43,172.38,3.98]
[1730472139132,17.84567117,172.43,172.34,3.83216687]
[1730472139524,2.9015,172.39,172.35,2.9019]
[1730472139731,17.84567117,172.43,172.35,2.9019]
[1730472139937,17.84567117,172.43,172.34,7.81216687]
[1730472140327,17.84567117,172.41,172.34,7.81216687]
[1730472140531,17.84567117,172.41,172.34,3.98]
[1730472140921,2.902,172.36,172.34,3.98]
[1730472143433,2.902,172.36,172.34,7.8178271]
[1730472144030,2.9018,172.37,172.34,7.8178271]
[1730472144531,1.3128,172.45,172.35,3.8378271]
[1730472144731,2.9009,172.42,172.36,6.69748573]
[1730472145033,1.3128,172.45,172.39,2.9012]
[1730472145331,19.17717117,172.48,172.4,3.8378271]
[1730472145533,625.28064527,172.86,172.41,17.84567117]
[1730472145534,17.84567117,172.55,172.41,17.84567117]
[1730472145732,2.8992,172.53,172.42,11.8866271]
[1730472145931,17.84567117,172.46,172.43,3.8378271]
[1730472146128,17.84567117,172.46,172.41,3.8378271]
[1730472146322,2.9004,172.45,172.42,3.8378271]
[1730472146637,17.84567117,172.46,172.4,2.9012]
[1730472146836,2.9006,172.44,172.41,3.84300243]
[1730472147035,17.84567117,172.46,172.41,2.901]
[1730472147534,17.84567117,172.46,172.42,3.84456591]
[1730472147725,17.84567117,172.46,172.38,3.84456591]
[1730472147925,17.84567117,172.43,172.39,7.82458856]
[1730472148128,2.901,172.41,172.4,3.84458856]
[1730472148531,17.84567117,172.43,172.36,3.84458856]
[1730472148730,2.9014,172.39,172.37,3.84458856]
[1730472148931,17.84567117,172.43,172.38,3.84458856]
[1730472149132,2.9009,172.42,172.35,6.84939583]
[1730472149436,17.84567117,172.43,172.38,2.9015]
[1730472149632,3.6933,172.48,172.37,3.84632575]
[1730472149633,2.9003,172.46,172.37,3.84632575]
[1730472149832,2.9003,172.46,172.38,3.84601994]
[1730472150037,2.6212,172.48,172.39,3.84601994]
[1730472150339,2.9005,172.44,172.4,6.74721994]
[1730472150637,2.9005,172.44,172.4,2.9012]
[1730472150835,2.9005,172.44,172.38,4.15302212]
[1730472150836,2.9005,172.44,172.41,3.84572658]
[1730472151143,2.9005,172.44,172.38,4.15302212]
[1730472151144,2.9005,172.44,172.42,3.84572658]
[1730472151341,2.9005,172.44,172.38,4.15302212]
[1730472151545,2.9005,172.44,172.4,2.9011]
[1730472151846,2.9007,172.43,172.41,3.84597949]
[1730472152039,2.9007,172.43,172.4,2.9011]
[1730472152234,2.9007,172.43,172.41,3.84607076]
[1730472152537,2.9007,172.43,172.42,3.84607076]
[1730472152944,2.6212,172.48,172.41,3.84607076]
[1730472152945,17.84567117,172.44,172.41,3.84607076]
[1730472153136,17.84567117,172.44,172.37,3.84607076]
[1730472153337,17.84567117,172.4,172.38,3.84607076]
[1730472153545,17.84567117,172.4,172.34,6.8821]
[1730472153850,2.902,172.36,172.35,3.84714765]
[1730472154836,17.84567117,172.38,172.28,5.26070729]
[1730472155040,2.9025,172.33,172.29,3.84760211]
[1730472155237,2.9025,172.33,172.28,3.98]
[1730472155942,2.9022,172.34,172.3,2.9027]
[1730472156344,2.9022,172.34,172.28,3.98]
[1730472157052,2.9025,172.33,172.28,3.98]
[1730472157641,17.84567117,172.35,172.26,2.97235149]
[1730472157948,17.84567117,172.35,172.27,3.98]
[1730472157949,2.9027,172.32,172.27,3.98]
[1730472158143,2.9027,172.32,172.26,2.97235149]
[1730472158344,2.9027,172.32,172.28,2.9031]
[1730472158745,2.9027,172.32,172.27,3.98]
[1730472158953,2.9027,172.32,172.29,2.903]
[1730472161560,17.84567117,172.35,172.27,3.98]
[1730472161757,17.84567117,172.33,172.25,41.78]
[1730472161947,17.84567117,172.31,172.24,3.98]
[1730472162145,2.9032,172.29,172.26,2.9034]
[1730472163156,2.9032,172.29,172.26,2.9036]
[1730472164159,17.84567117,172.31,172.18,2.67560729]
[1730472164458,17.84567117,172.31,172.19,8.93851281]
[1730472164653,17.84567117,172.31,172.2,1.06721281]
[1730472165052,17.84567117,172.28,172.2,3.98]
[1730472165454,17.84567117,172.28,172.15,3.98190729]
[1730472165757,17.84567117,172.25,172.16,5.04734768]
[1730472165956,2.9041,172.23,172.2,2.9044]
[1730472166153,17.84567117,172.25,172.16,3.98]
[1730472166461,1.3376,172.29,172.15,1.3063]
[1730472166462,2.9047,172.2,172.15,1.3063]
[1730472166663,11.16069021,172.21,172.11,15.14069021]
[1730472167048,2.9048,172.19,172.11,15.14069021]
[1730472167353,11.16069021,172.21,172.11,15.14069021]
[1730472167755,14.06519021,172.21,172.11,15.14069021]
[1730472168547,14.06519021,172.21,172.11,3.98]
[1730472168752,2.9045,172.21,172.11,3.98]
[1730472169360,2.9045,172.21,172.17,2.9049]
[1730472169554,17.85606105,172.23,172.15,2.95679219]
[1730472169750,20.76026105,172.23,172.11,3.98]
[1730472169956,17.85606105,172.26,172.12,17.85606105]
[1730472170462,17.85606105,172.26,172.2,2.9044]
[1730472170969,2.9042,172.23,172.2,2.9046]
[1730472171868,2.9039,172.24,172.2,2.9046]
[1730472172966,2.9042,172.23,172.2,2.9045]
[1730472173961,17.85606105,172.23,172.11,3.98]
[1730472174158,17.85606105,172.23,172.12,1.06776104]
[1730472174357,2.9046,172.2,172.12,1.06776104]
[1730472174667,17.85606105,172.23,172.15,2.9053]
[1730472174668,1.3057,172.22,172.15,2.9053]
[1730472174863,1.3057,172.22,172.11,3.98]
[1730472175064,2.9048,172.19,172.16,2.9052]
[1730472175361,1.3057,172.22,172.11,3.98]
[1730472175565,17.85606105,172.2,172.11,3.98]
[1730472175767,2.905,172.18,172.14,2.9055]
[1730472176162,2.905,172.18,172.11,3.98]
[1730472176561,2.905,172.18,172.15,2.9054]
[1730472177257,17.85606105,172.17,172.03,2.67560729]
[1730472177457,17.85606105,172.15,172.04,1.06809803]
[1730472177658,17.85606105,172.15,172.08,2.9065]
[1730472177659,2.906,172.12,172.08,2.9065]
[1730472177866,1.3026,172.14,172.02,17.85606105]
[1730472178062,1.3026,172.14,172.03,1.06821056]
[1730472178263,4.2083,172.14,172.07,2.9068]
[1730472178569,17.85606105,172.17,172.04,3.98]
[1730472178768,17.85606105,172.17,172.05,1.06822471]
[1730472178769,19.10476105,172.17,172.05,1.06822471]
[1730472178957,2.9054,172.15,172.11,2.906]
[1730472179156,19.10476105,172.17,172.09,2.94742667]
[1730472179362,19.10476105,172.17,172.06,2.5614]
[1730472180162,22.00996105,172.17,172.13,2.9057]
[1730472180368,19.10476105,172.17,172.04,21.83606105]
[1730472180576,1.2487,172.17,172.05,1.0682032]
[1730472180767,4.1539,172.17,172.14,2.9056]
[1730472180967,1.2487,172.17,172.1,2.88191492]
[1730472181167,19.10476105,172.17,172.04,21.83606105]
[1730472181373,2.9056,172.14,172.1,2.9061]
[1730472181564,2.9056,172.14,172.04,21.83606105]
[1730472181565,19.10476105,172.17,172.04,21.83606105]
[1730472181765,2.9055,172.15,172.11,2.9061]
[1730472182361,2.9056,172.14,172.11,2.9061]
[1730472182677,19.10476105,172.17,172.11,2.9061]
[1730472182971,17.85606105,172.14,172.04,3.98]
[1730472183272,17.85606105,172.14,172.05,1.65624397]
[1730472183572,2.9059,172.12,172.08,2.9065]
[1730472183870,19.10476105,172.17,172.04,21.83606105]
[1730472184578,2.9058,172.13,172.04,21.83606105]
[1730472184877,19.10476105,172.17,172.04,21.83606105]
[1730472185078,2.9059,172.12,172.09,2.9064]
[1730472185374,19.10476105,172.17,172.04,3.98]
[1730472185574,2.9058,172.13,172.04,3.98]
[1730472185967,2.9055,172.15,172.11,2.906]
[1730472186167,19.10476105,172.17,172.11,2.906]
[1730472186577,2.9056,172.15,172.11,2.906]
[1730472186870,19.10476105,172.17,172.07,2.9066]
[1730472187073,17.85606105,172.14,172.05,2.65922116]
[1730472187276,17.85606105,172.14,172.04,6.63922116]
[1730472187470,17.85606105,172.14,172.09,2.9063]
[1730472187670,2.906,172.12,172.09,2.9063]
[1730472187867,17.85606105,172.14,172.04,6.63922116]
[1730472188171,2.906,172.12,172.05,2.65922116]
[1730472188375,2.906,172.12,172.05,3.98]
[1730472188574,2.906,172.12,172.09,2.9063]
[1730472188973,2.9062,172.11,172.04,3.98]
[1730472189576,11.15698391,172.13,172.04,3.98]
[1730472190076,14.06288391,172.13,172.04,3.98]
[1730472190479,11.15698391,172.13,172.04,3.98]
[1730472191565,11.15698391,172.11,172.03,6.5414]
[1730472191774,2.9064,172.1,172.07,2.9067]
[1730472191968,11.15698391,172.09,172.0,2.92417739]
[1730472192172,11.15698391,172.07,172.0,3.98]
[1730472192467,11.15698391,172.07,172.05,2.907]
[1730472193075,11.15698391,172.07,172.01,3.98]
[1730472193273,11.15698391,172.07,172.0,3.98]
[1730472193474,11.15698391,172.05,171.99,3.98]
[1730472193873,14.06408391,172.05,172.02,2.9075]
[1730472194072,1.3014,172.09,171.99,3.98]
[1730472194380,1.3014,172.09,171.98,2.90722]
[1730472194381,11.15698391,172.05,171.98,6.88722]
[1730472194778,11.15698391,172.05,171.94,14.97658391]
[1730472194779,11.15698391,172.03,171.97,3.98]
[1730472194973,11.15698391,172.03,171.96,2.94647139]
[1730472195169,11.15698391,172.03,171.94,12.43168391]
[1730472195373,14.06448391,172.03,171.94,5.2547]
[1730472195874,11.15698391,172.03,171.94,5.2547]
[1730472196380,14.06458391,172.03,171.99,2.908]
[1730472196578,11.15698391,172.01,171.95,3.98]
[1730472196774,11.15698391,172.01,171.94,1.2747]
[1730472196980,11.15698391,171.96,171.87,5.51248827]